[Event "Early-Titled-Tuesday-Blitz-May-28-2024"]
[Site "Chess.com"]
[Date "2024.05.28"]
[Round "7"]
[White "Casper"]
[Black "luggevoila"]
[Result "1/2-1/2"]
[WhiteElo "2485"]
[BlackElo "2340"]
[TimeControl "180+1"]
[EndTime "9:20:19 PDT"]
[Termination "Game drawn by stalemate"]

1. e4 {[%clk 0:02:56.6]} 1... d6 {[%clk 0:03:00.9]} 2. f3 {[%clk 0:02:55.6]}
2... g6 {[%clk 0:03:00.8]} 3. h4 {[%clk 0:02:54.7]} 3... h5 {[%clk 0:02:59.3]}
4. d4 {[%clk 0:02:53.9]} 4... Bg7 {[%clk 0:02:59.8]} 5. c3 {[%clk 0:02:53.4]}
5... c5 {[%clk 0:02:58.8]} 6. dxc5 {[%clk 0:02:52.5]} 6... Qc7 {[%clk
0:02:58.3]} 7. cxd6 {[%clk 0:02:47.4]} 7... exd6 {[%clk 0:02:58.4]} 8. Bf4
{[%clk 0:02:45.1]} 8... Qb6 {[%clk 0:02:42.6]} 9. Qd2 {[%clk 0:02:18.2]} 9...
Nc6 {[%clk 0:02:35.8]} 10. Na3 {[%clk 0:02:12.2]} 10... Ne5 {[%clk 0:02:18.3]}
11. O-O-O {[%clk 0:01:54.8]} 11... Be6 {[%clk 0:02:04.5]} 12. Be3 {[%clk
0:01:14.3]} 12... Qa5 {[%clk 0:01:54.6]} 13. Qxd6 {[%clk 0:00:58.8]} 13... Ne7
{[%clk 0:01:50.2]} 14. Bc5 {[%clk 0:00:44.2]} 14... N5c6 {[%clk 0:01:42.4]} 15.
Nb5 {[%clk 0:00:31.6]} 15... O-O {[%clk 0:01:34.2]} 16. a3 {[%clk 0:00:18.3]}
16... Rfd8 {[%clk 0:01:28.8]} 17. Qf4 {[%clk 0:00:14.1]} 17... Rxd1+ {[%clk
0:01:20.6]} 18. Kxd1 {[%clk 0:00:15]} 18... Rd8+ {[%clk 0:01:13.6]} 19. Ke1
{[%clk 0:00:12.2]} 19... a6 {[%clk 0:01:06.4]} 20. Bxe7 {[%clk 0:00:11.6]} 20...
Nxe7 {[%clk 0:01:04]} 21. Qc7 {[%clk 0:00:04]} 21... Qxc7 {[%clk 0:00:45.9]} 22.
Nxc7 {[%clk 0:00:04.9]} 22... Bb3 {[%clk 0:00:42.9]} 23. Ne2 {[%clk 0:00:04.8]}
23... Rd1+ {[%clk 0:00:35]} 24. Kf2 {[%clk 0:00:04.8]} 24... Rb1 {[%clk
0:00:34]} 25. Nf4 {[%clk 0:00:01.6]} 25... Rxb2+ {[%clk 0:00:34.3]} 26. Ke3
{[%clk 0:00:02]} 26... Bxc3 {[%clk 0:00:32.7]} 27. Bd3 {[%clk 0:00:02]} 27...
Ba5 {[%clk 0:00:30.2]} 28. Nfd5 {[%clk 0:00:01.4]} 28... Bd2+ {[%clk 0:00:26]}
29. Kd4 {[%clk 0:00:01]} 29... Nc6+ {[%clk 0:00:26.2]} 30. Kc5 {[%clk
0:00:01.6]} 30... Bh6 {[%clk 0:00:16.1]} 31. Rb1 {[%clk 0:00:02]} 31... Bf8+
{[%clk 0:00:15]} 32. Kb6 {[%clk 0:00:02.2]} 32... Rxb1 {[%clk 0:00:11.8]} 33.
Bxb1 {[%clk 0:00:03.1]} 33... Bxa3 {[%clk 0:00:10.8]} 34. Kxb7 {[%clk
0:00:03.2]} 34... Nd4 {[%clk 0:00:10]} 35. Kxa6 {[%clk 0:00:03.6]} 35... Bc4+
{[%clk 0:00:09.7]} 36. Ka5 {[%clk 0:00:03.6]} 36... Bf1 {[%clk 0:00:09.9]} 37.
Ka4 {[%clk 0:00:03.7]} 37... Bc1 {[%clk 0:00:09.7]} 38. Ba2 {[%clk 0:00:04.1]}
38... Bxg2 {[%clk 0:00:09.6]} 39. Nf6+ {[%clk 0:00:03.5]} 39... Kg7 {[%clk
0:00:09.6]} 40. Nfe8+ {[%clk 0:00:02.8]} 40... Kf8 {[%clk 0:00:09.8]} 41. Nf6
{[%clk 0:00:03]} 41... Bxf3 {[%clk 0:00:08.7]} 42. e5 {[%clk 0:00:03.6]} 42...
Bf4 {[%clk 0:00:08]} 43. Kb4 {[%clk 0:00:01.6]} 43... Nc6+ {[%clk 0:00:08.1]}
44. Kc5 {[%clk 0:00:01.6]} 44... Nxe5 {[%clk 0:00:08.7]} 45. Ncd5 {[%clk
0:00:01]} 45... Nd3+ {[%clk 0:00:08.4]} 46. Kd4 {[%clk 0:00:01.2]} 46... Nf2
{[%clk 0:00:07.9]} 47. Nxf4 {[%clk 0:00:01]} 47... Ng4 {[%clk 0:00:07.6]} 48.
Nd7+ {[%clk 0:00:01.8]} 48... Kg7 {[%clk 0:00:07.4]} 49. Ne5 {[%clk 0:00:02.7]}
49... Nxe5 {[%clk 0:00:07.4]} 50. Kxe5 {[%clk 0:00:03.6]} 50... f6+ {[%clk
0:00:07.4]} 51. Kd4 {[%clk 0:00:04.1]} 51... g5 {[%clk 0:00:07.8]} 52. hxg5
{[%clk 0:00:04.2]} 52... fxg5 {[%clk 0:00:08.7]} 53. Nh3 {[%clk 0:00:04.6]}
53... g4 {[%clk 0:00:08.4]} 54. Ng1 {[%clk 0:00:05.2]} 54... Bg2 {[%clk
0:00:08.4]} 55. Ke5 {[%clk 0:00:05.6]} 55... h4 {[%clk 0:00:08.8]} 56. Kf4
{[%clk 0:00:06.5]} 56... h3 {[%clk 0:00:09.2]} 57. Kg3 {[%clk 0:00:07]} 57...
Kg6 {[%clk 0:00:08.6]} 58. Be6 {[%clk 0:00:07.1]} 58... Kg5 {[%clk 0:00:08.7]}
59. Bd7 {[%clk 0:00:07.3]} 59... Bf1 {[%clk 0:00:08]} 60. Bc8 {[%clk 0:00:07.5]}
60... Be2 {[%clk 0:00:08.1]} 61. Nxe2 {[%clk 0:00:07.3]} 61... Kf6 {[%clk
0:00:06.4]} 62. Bxg4 {[%clk 0:00:07.4]} 62... Ke5 {[%clk 0:00:07.1]} 63. Bxh3
{[%clk 0:00:07.3]} 63... Kd5 {[%clk 0:00:07.6]} 64. Kf2 {[%clk 0:00:07.5]} 64...
Kc4 {[%clk 0:00:08.2]} 65. Ke3 {[%clk 0:00:08]} 65... Kb5 {[%clk 0:00:08.8]} 66.
Kd4 {[%clk 0:00:08.4]} 66... Kc6 {[%clk 0:00:09.4]} 67. Bf5 {[%clk 0:00:07.6]}
67... Kb7 {[%clk 0:00:09.9]} 68. Nc3 {[%clk 0:00:07.8]} 68... Kc7 {[%clk
0:00:10.5]} 69. Kd5 {[%clk 0:00:08]} 69... Kd8 {[%clk 0:00:10.2]} 70. Ke6 {[%clk
0:00:07.3]} 70... Ke8 {[%clk 0:00:10.4]} 71. Bh7 {[%clk 0:00:07.3]} 71... Kf8
{[%clk 0:00:10.5]} 72. Nd5 {[%clk 0:00:07.9]} 72... Kg7 {[%clk 0:00:10.8]} 73.
Bd3 {[%clk 0:00:07.1]} 73... Kh6 {[%clk 0:00:11]} 74. Kf6 {[%clk 0:00:04.7]}
74... Kh5 {[%clk 0:00:10.2]} 75. Ne3 {[%clk 0:00:04.3]} 75... Kh6 {[%clk
0:00:08.4]} 76. Bc2 {[%clk 0:00:03.7]} 76... Kh5 {[%clk 0:00:08.1]} 77. Bh7
{[%clk 0:00:02.1]} 77... Kh6 {[%clk 0:00:07.5]} 78. Bg8 {[%clk 0:00:02.9]} 78...
Kh5 {[%clk 0:00:07.3]} 79. Nf5 {[%clk 0:00:03.2]} 79... Kg4 {[%clk 0:00:07.1]}
80. Ke5 {[%clk 0:00:04]} 80... Kf3 {[%clk 0:00:07]} 81. Bc4 {[%clk 0:00:04.4]}
81... Kf2 {[%clk 0:00:06.3]} 82. Kd4 {[%clk 0:00:03.8]} 82... Ke1 {[%clk
0:00:06]} 83. Bb3 {[%clk 0:00:02.9]} 83... Kd2 {[%clk 0:00:06]} 84. Ne3 {[%clk
0:00:02.3]} 84... Kc1 {[%clk 0:00:06.5]} 85. Kc3 {[%clk 0:00:01]} 85... Kb1
{[%clk 0:00:06.8]} 86. Nc4 {[%clk 0:00:01.5]} 86... Ka1 {[%clk 0:00:06.6]} 87.
Na3 {[%clk 0:00:01]} 1/2-1/2

[Event "Early-Titled-Tuesday-Blitz-May-28-2024"]
[Site "Chess.com"]
[Date "2024.05.28"]
[Round "7"]
[White "JeFumeDesClopes"]
[Black "Ramosha"]
[Result "1/2-1/2"]
[WhiteElo "2704"]
[BlackElo "2565"]
[TimeControl "180+1"]
[EndTime "9:20:34 PDT"]
[Termination "Game drawn - insufficient material"]

1. Nf3 {[%clk 0:03:00.9]} 1... Nf6 {[%clk 0:02:59.5]} 2. g3 {[%clk 0:03:01.2]}
2... e6 {[%clk 0:02:59.7]} 3. Bg2 {[%clk 0:03:01.4]} 3... d5 {[%clk 0:03:00.4]}
4. O-O {[%clk 0:03:01.7]} 4... Be7 {[%clk 0:03:01]} 5. d3 {[%clk 0:03:02.6]}
5... O-O {[%clk 0:03:00.9]} 6. Bf4 {[%clk 0:03:01.2]} 6... c5 {[%clk 0:03:01.4]}
7. a4 {[%clk 0:02:59.4]} 7... Nc6 {[%clk 0:03:01.5]} 8. e4 {[%clk 0:02:58.7]}
8... dxe4 {[%clk 0:03:01.2]} 9. dxe4 {[%clk 0:02:57.7]} 9... Qxd1 {[%clk
0:03:01]} 10. Rxd1 {[%clk 0:02:56.5]} 10... Nxe4 {[%clk 0:03:01.9]} 11. Ne5
{[%clk 0:02:53.7]} 11... Nxe5 {[%clk 0:03:01.7]} 12. Bxe5 {[%clk 0:02:54.6]}
12... Nf6 {[%clk 0:03:00.6]} 13. Na3 {[%clk 0:02:51.5]} 13... Nd7 {[%clk
0:02:57.5]} 14. Bxb7 {[%clk 0:02:45.8]} 14... Nxe5 {[%clk 0:02:41.4]} 15. Bxa8
{[%clk 0:02:45.4]} 15... Ba6 {[%clk 0:02:31.5]} 16. Bg2 {[%clk 0:02:29.3]} 16...
g5 {[%clk 0:02:28.2]} 17. Nb5 {[%clk 0:02:25.3]} 17... Rb8 {[%clk 0:02:27.1]}
18. b3 {[%clk 0:02:15.1]} 18... Bxb5 {[%clk 0:02:19.1]} 19. axb5 {[%clk
0:02:15.1]} 19... Rxb5 {[%clk 0:02:20]} 20. Rxa7 {[%clk 0:02:13.9]} 20... Bf6
{[%clk 0:02:20.6]} 21. h3 {[%clk 0:02:05.2]} 21... Rb4 {[%clk 0:02:13.4]} 22.
Rb7 {[%clk 0:02:00.9]} 22... Kg7 {[%clk 0:01:54.2]} 23. c3 {[%clk 0:01:56.4]}
23... Rxb7 {[%clk 0:01:48.9]} 24. Bxb7 {[%clk 0:01:57.3]} 24... Ng6 {[%clk
0:01:40.7]} 25. b4 {[%clk 0:01:52.2]} 25... cxb4 {[%clk 0:01:40.7]} 26. cxb4
{[%clk 0:01:52.2]} 26... Bc3 {[%clk 0:01:40.6]} 27. b5 {[%clk 0:01:51.7]} 27...
Ne5 {[%clk 0:01:40.4]} 28. Kf1 {[%clk 0:01:39.5]} 28... f5 {[%clk 0:01:38.2]}
29. Ke2 {[%clk 0:01:39.5]} 29... Kf6 {[%clk 0:01:38.1]} 30. Bg2 {[%clk
0:01:34.1]} 30... Ba5 {[%clk 0:01:35.6]} 31. Rd6 {[%clk 0:01:29.8]} 31... Nc4
{[%clk 0:01:34.6]} 32. Ra6 {[%clk 0:01:27.9]} 32... Bb6 {[%clk 0:01:33.5]} 33.
Ke1 {[%clk 0:01:20.9]} 33... Bd4 {[%clk 0:01:28]} 34. Rc6 {[%clk 0:00:55]} 34...
Nb6 {[%clk 0:01:26.4]} 35. Ke2 {[%clk 0:00:51.6]} 35... h5 {[%clk 0:01:21.6]}
36. f4 {[%clk 0:00:46.2]} 36... g4 {[%clk 0:01:17]} 37. hxg4 {[%clk 0:00:44.7]}
37... hxg4 {[%clk 0:01:17.9]} 38. Rd6 {[%clk 0:00:39]} 38... Bc5 {[%clk
0:01:15.3]} 39. Rd8 {[%clk 0:00:38.6]} 39... Ke7 {[%clk 0:01:14.7]} 40. Rh8
{[%clk 0:00:38.5]} 40... Na4 {[%clk 0:01:12.4]} 41. Bc6 {[%clk 0:00:37.2]} 41...
Nc3+ {[%clk 0:01:08.8]} 42. Kd3 {[%clk 0:00:34.2]} 42... Na4 {[%clk 0:01:09.1]}
43. Ra8 {[%clk 0:00:30.2]} 43... Nb6 {[%clk 0:01:08.8]} 44. Ra7+ {[%clk
0:00:29.4]} 44... Kd6 {[%clk 0:00:59.9]} 45. Ke2 {[%clk 0:00:29.6]} 45... Bg1
{[%clk 0:00:58]} 46. Rh7 {[%clk 0:00:29.3]} 46... Bc5 {[%clk 0:00:56.8]} 47. Rh6
{[%clk 0:00:29.1]} 47... Bd4 {[%clk 0:00:55.3]} 48. Be8 {[%clk 0:00:28.1]} 48...
Ke7 {[%clk 0:00:54.2]} 49. Bg6 {[%clk 0:00:26.7]} 49... Na4 {[%clk 0:00:53.1]}
50. Bh5 {[%clk 0:00:21.6]} 50... Bb6 {[%clk 0:00:33.5]} 51. Rh7+ {[%clk
0:00:19.9]} 51... Kd6 {[%clk 0:00:32.9]} 52. Bf7 {[%clk 0:00:19.9]} 52... Nc3+
{[%clk 0:00:31.8]} 53. Kd3 {[%clk 0:00:19.3]} 53... Nxb5 {[%clk 0:00:32.4]} 54.
Bxe6 {[%clk 0:00:19.1]} 54... Bf2 {[%clk 0:00:28.2]} 55. Bxf5 {[%clk 0:00:14.8]}
55... Bxg3 {[%clk 0:00:28.2]} 56. Ke3 {[%clk 0:00:12.2]} 56... Nc3 {[%clk
0:00:27.3]} 57. Rh6+ {[%clk 0:00:10.3]} 57... Kc5 {[%clk 0:00:24.4]} 58. Bxg4
{[%clk 0:00:10.4]} 58... Nd5+ {[%clk 0:00:22]} 59. Ke4 {[%clk 0:00:10]} 59...
Nxf4 {[%clk 0:00:17.1]} 60. Rh8 {[%clk 0:00:07.5]} 60... Kd6 {[%clk 0:00:13.5]}
61. Kf3 {[%clk 0:00:07.8]} 61... Ng6 {[%clk 0:00:11.5]} 62. Rh6 {[%clk
0:00:08.1]} 62... Be5 {[%clk 0:00:08.3]} 63. Rxg6+ {[%clk 0:00:08.6]} 63... Kc5
{[%clk 0:00:08.9]} 64. Ke4 {[%clk 0:00:08.6]} 64... Bb2 {[%clk 0:00:09.4]} 65.
Bf5 {[%clk 0:00:09.5]} 65... Ba1 {[%clk 0:00:09.7]} 66. Re6 {[%clk 0:00:10.4]}
66... Bc3 {[%clk 0:00:10]} 67. Re8 {[%clk 0:00:10.5]} 67... Bb2 {[%clk
0:00:09.9]} 68. Rd8 {[%clk 0:00:09.7]} 68... Bf6 {[%clk 0:00:09.4]} 69. Rd7
{[%clk 0:00:09]} 69... Kc6 {[%clk 0:00:08.8]} 70. Rd1 {[%clk 0:00:08.8]} 70...
Kc5 {[%clk 0:00:09]} 71. Rc1+ {[%clk 0:00:08.3]} 71... Kd6 {[%clk 0:00:09.4]}
72. Bg4 {[%clk 0:00:08.2]} 72... Bb2 {[%clk 0:00:09.6]} 73. Rc2 {[%clk
0:00:08.3]} 73... Bh8 {[%clk 0:00:09.8]} 74. Bf3 {[%clk 0:00:08.4]} 74... Bg7
{[%clk 0:00:09.8]} 75. Kf5 {[%clk 0:00:08.7]} 75... Bh8 {[%clk 0:00:10.2]} 76.
Rc6+ {[%clk 0:00:08.9]} 76... Kd7 {[%clk 0:00:10.7]} 77. Ra6 {[%clk 0:00:09.8]}
77... Bd4 {[%clk 0:00:10.7]} 78. Bd5 {[%clk 0:00:09.5]} 78... Kc7 {[%clk
0:00:10.8]} 79. Ke6 {[%clk 0:00:09.4]} 79... Bh8 {[%clk 0:00:11]} 80. Rc6+
{[%clk 0:00:09.9]} 80... Kb7 {[%clk 0:00:11]} 81. Kd7 {[%clk 0:00:09.9]} 81...
Ka7 {[%clk 0:00:10.2]} 82. Bc4 {[%clk 0:00:09.3]} 82... Be5 {[%clk 0:00:09.1]}
83. Rc5 {[%clk 0:00:09.5]} 83... Bd4 {[%clk 0:00:07.2]} 84. Rd5 {[%clk
0:00:09.9]} 84... Bf2 {[%clk 0:00:07.1]} 85. Kc6 {[%clk 0:00:10.2]} 85... Bh4
{[%clk 0:00:07.1]} 86. Ra5+ {[%clk 0:00:09.9]} 86... Kb8 {[%clk 0:00:07.3]} 87.
Bd5 {[%clk 0:00:09.9]} 87... Bd8 {[%clk 0:00:07.4]} 88. Ra6 {[%clk 0:00:09.5]}
88... Bh4 {[%clk 0:00:06.9]} 89. Ra2 {[%clk 0:00:08.5]} 89... Bg3 {[%clk
0:00:06.1]} 90. Kb6 {[%clk 0:00:08.1]} 90... Bc7+ {[%clk 0:00:05.5]} 91. Kb5
{[%clk 0:00:08.7]} 91... Kc8 {[%clk 0:00:05.6]} 92. Kc6 {[%clk 0:00:08]} 92...
Kb8 {[%clk 0:00:01.6]} 93. Ra8+ {[%clk 0:00:08.4]} 93... Kxa8 {[%clk 0:00:01.7]}
1/2-1/2

[Event "Early-Titled-Tuesday-Blitz-May-28-2024"]
[Site "Chess.com"]
[Date "2024.05.28"]
[Round "7"]
[White "Javylavilla"]
[Black "Grebnev_A"]
[Result "1/2-1/2"]
[WhiteElo "2351"]
[BlackElo "2542"]
[TimeControl "180+1"]
[EndTime "9:20:40 PDT"]
[Termination "Game drawn by agreement"]

1. e4 {[%clk 0:03:00]} 1... c5 {[%clk 0:02:59.9]} 2. Nf3 {[%clk 0:02:59.4]} 2...
Nc6 {[%clk 0:03:00.4]} 3. Bb5 {[%clk 0:02:58.8]} 3... e5 {[%clk 0:03:00.9]} 4.
c3 {[%clk 0:02:58]} 4... a6 {[%clk 0:03:00.4]} 5. Ba4 {[%clk 0:02:57.3]} 5... b5
{[%clk 0:03:00.6]} 6. Bc2 {[%clk 0:02:56.8]} 6... Nf6 {[%clk 0:03:00.3]} 7. O-O
{[%clk 0:02:56.7]} 7... Bd6 {[%clk 0:02:46.6]} 8. d4 {[%clk 0:02:55.8]} 8...
cxd4 {[%clk 0:02:46.2]} 9. cxd4 {[%clk 0:02:56]} 9... Qc7 {[%clk 0:02:12.7]} 10.
d5 {[%clk 0:02:39.7]} 10... Ne7 {[%clk 0:02:06.5]} 11. Bg5 {[%clk 0:02:36.2]}
11... Ng6 {[%clk 0:02:02.4]} 12. Nc3 {[%clk 0:02:34.3]} 12... O-O {[%clk
0:02:01.8]} 13. Rc1 {[%clk 0:02:32]} 13... Bc5 {[%clk 0:02:01.1]} 14. Bb1 {[%clk
0:02:28.8]} 14... Qb6 {[%clk 0:02:00.6]} 15. Qe2 {[%clk 0:02:10.6]} 15... d6
{[%clk 0:01:29.7]} 16. Bxf6 {[%clk 0:02:07.6]} 16... gxf6 {[%clk 0:01:29.6]} 17.
g3 {[%clk 0:02:07.9]} 17... Bd7 {[%clk 0:01:27.6]} 18. h4 {[%clk 0:02:07.3]}
18... b4 {[%clk 0:01:24.8]} 19. Nd1 {[%clk 0:02:04.8]} 19... Rfc8 {[%clk
0:01:24.7]} 20. h5 {[%clk 0:01:55.8]} 20... Nf8 {[%clk 0:01:12.3]} 21. Nd2
{[%clk 0:01:46.2]} 21... h6 {[%clk 0:01:02.8]} 22. Nc4 {[%clk 0:01:43.8]} 22...
Qa7 {[%clk 0:01:02.5]} 23. b3 {[%clk 0:01:43.6]} 23... Nh7 {[%clk 0:01:00.9]}
24. Kg2 {[%clk 0:01:39.2]} 24... Ng5 {[%clk 0:00:56.5]} 25. Rh1 {[%clk
0:01:32.6]} 25... a5 {[%clk 0:00:56.8]} 26. f4 {[%clk 0:01:31.2]} 26... Nh7
{[%clk 0:00:56.7]} 27. Nde3 {[%clk 0:01:17.6]} 27... exf4 {[%clk 0:00:53.5]} 28.
gxf4 {[%clk 0:01:16.4]} 28... Kh8 {[%clk 0:00:53.9]} 29. e5 {[%clk 0:01:02.5]}
29... Rg8+ {[%clk 0:00:50.4]} 30. Kh2 {[%clk 0:01:01.8]} 30... fxe5 {[%clk
0:00:49.7]} 31. fxe5 {[%clk 0:01:00.1]} 31... Rg5 {[%clk 0:00:45.5]} 32. Rhg1
{[%clk 0:00:53.6]} 32... Rag8 {[%clk 0:00:43.6]} 33. Rxg5 {[%clk 0:00:52.9]}
33... Rxg5 {[%clk 0:00:44.5]} 34. Rg1 {[%clk 0:00:53.3]} 34... dxe5 {[%clk
0:00:42.5]} 35. Rxg5 {[%clk 0:00:49.6]} 35... Nxg5 {[%clk 0:00:43.4]} 36. Ng4
{[%clk 0:00:48.9]} 36... e4 {[%clk 0:00:34.1]} 37. Qb2+ {[%clk 0:00:44.2]} 37...
Kg8 {[%clk 0:00:27.7]} 38. Nxh6+ {[%clk 0:00:43.5]} 38... Kh7 {[%clk 0:00:27.3]}
39. Qf6 {[%clk 0:00:42.2]} 39... Bg1+ {[%clk 0:00:10.7]} 40. Kh1 {[%clk
0:00:41.9]} 40... Qf2 {[%clk 0:00:11]} 41. Qxf2 {[%clk 0:00:20.3]} 41... Bxf2
{[%clk 0:00:11.9]} 42. Ne5 {[%clk 0:00:20.7]} 42... Kxh6 {[%clk 0:00:09.2]} 43.
Nxd7 {[%clk 0:00:20.4]} 43... e3 {[%clk 0:00:09.4]} 44. Bd3 {[%clk 0:00:20.1]}
44... Kxh5 {[%clk 0:00:08.9]} 45. Kg2 {[%clk 0:00:19.9]} 45... Kg4 {[%clk
0:00:09.2]} 46. Nf6+ {[%clk 0:00:19.6]} 46... Kf4 {[%clk 0:00:08.4]} 47. d6
{[%clk 0:00:19.9]} 47... Ke5 {[%clk 0:00:06.7]} 48. d7 {[%clk 0:00:19.4]} 48...
Ne6 {[%clk 0:00:07.4]} 49. Ne8 {[%clk 0:00:17.8]} 49... Nd8 {[%clk 0:00:05.9]}
50. Kf3 {[%clk 0:00:16]} 50... f5 {[%clk 0:00:04.8]} 51. Nc7 {[%clk 0:00:15.3]}
51... f4 {[%clk 0:00:04.6]} 52. Nb5 {[%clk 0:00:13.1]} 52... Bg3 {[%clk
0:00:02.7]} 53. Be2 {[%clk 0:00:12.4]} 53... Ke6 {[%clk 0:00:02.4]} 54. Ke4
{[%clk 0:00:12.4]} 54... Kxd7 {[%clk 0:00:02.9]} 55. Nd4 {[%clk 0:00:12.9]}
55... Nc6 {[%clk 0:00:02.3]} 56. Bg4+ {[%clk 0:00:12.5]} 56... Kd6 {[%clk
0:00:01.9]} 57. Nxc6 {[%clk 0:00:12.9]} 57... Kxc6 {[%clk 0:00:02.5]} 58. Be2
{[%clk 0:00:13.8]} 58... Kc5 {[%clk 0:00:03.3]} 59. Kd3 {[%clk 0:00:13.6]} 59...
Kd5 {[%clk 0:00:03.7]} 60. Bf3+ {[%clk 0:00:13.9]} 60... Ke5 {[%clk 0:00:04.4]}
61. Ke2 {[%clk 0:00:13.3]} 61... Bh4 {[%clk 0:00:04.6]} 62. Kd3 {[%clk
0:00:13.3]} 62... Bf6 {[%clk 0:00:04.8]} 63. Be2 {[%clk 0:00:13.6]} 63... Kf5
{[%clk 0:00:05.3]} 64. Bf3 {[%clk 0:00:14]} 64... Ba1 {[%clk 0:00:06]} 65. Be2
{[%clk 0:00:13.8]} 65... Ke5 {[%clk 0:00:05.7]} 66. Bf3 {[%clk 0:00:14]} 66...
Bc3 {[%clk 0:00:06.5]} 67. Be2 {[%clk 0:00:13.8]} 67... Be1 {[%clk 0:00:07.2]}
68. Bf3 {[%clk 0:00:14.1]} 68... Bg3 {[%clk 0:00:08.1]} 69. Be2 {[%clk
0:00:14.4]} 69... Kf5 {[%clk 0:00:09]} 70. Bf3 {[%clk 0:00:14.8]} 70... Kg5
{[%clk 0:00:09.7]} 71. Be2 {[%clk 0:00:15.1]} 71... Kh4 {[%clk 0:00:09.9]} 72.
Bf3 {[%clk 0:00:15.3]} 72... Be1 {[%clk 0:00:09.7]} 73. Ke2 {[%clk 0:00:15.5]}
73... Bc3 {[%clk 0:00:10.1]} 74. Kd3 {[%clk 0:00:15.3]} 74... Bh8 {[%clk
0:00:09.1]} 75. Ke2 {[%clk 0:00:16.2]} 75... Kg3 {[%clk 0:00:10]} 76. Bc6 {[%clk
0:00:15.6]} 76... Kg4 {[%clk 0:00:10.9]} 77. Bf3+ {[%clk 0:00:15.3]} 77... Kf5
{[%clk 0:00:11.2]} 78. Kd3 {[%clk 0:00:14.8]} 78... Ke5 {[%clk 0:00:12.1]} 79.
Be2 {[%clk 0:00:14.8]} 79... Bf6 {[%clk 0:00:12.5]} 80. Bf3 {[%clk 0:00:15.1]}
80... Bd8 {[%clk 0:00:13.1]} 81. Be2 {[%clk 0:00:15.3]} 81... Bb6 {[%clk
0:00:14]} 82. Bf3 {[%clk 0:00:15.6]} 82... Kf5 {[%clk 0:00:14.9]} 83. Be2 {[%clk
0:00:14.2]} 83... Ke5 {[%clk 0:00:12.3]} 84. Bf3 {[%clk 0:00:14.2]} 84... a4
{[%clk 0:00:13]} 85. bxa4 {[%clk 0:00:12.4]} 85... Kd6 {[%clk 0:00:10.5]} 86.
Kc4 {[%clk 0:00:12]} 86... Bc5 {[%clk 0:00:10]} 87. a5 {[%clk 0:00:12.1]} 87...
Ba7 {[%clk 0:00:08.6]} 88. Kxb4 {[%clk 0:00:11.7]} 88... Ke5 {[%clk 0:00:08.1]}
89. Kc4 {[%clk 0:00:11.6]} 89... Kd6 {[%clk 0:00:08.5]} 90. a4 {[%clk
0:00:10.7]} 1/2-1/2